[Event "Chess Festival Groningen 2023 | A"]
[Site "Groningen, Netherlands"]
[Date "2023.12.29"]
[Round "8.18"]
[White "De Jong, Migchiel"]
[Black "Boer, Alef"]
[Result "1-0"]
[TimeControl "90min/40moves + 30min + 30sec/move"]
[WhiteElo "2301"]
[BlackElo "2017"]

1. e4 {[%clk 01:30:33]} {[%emt 00:00:25]} c5 {[%clk 01:30:54]} {[%emt
00:00:08]} 2. Nf3 {[%clk 01:30:46]} {[%emt 00:00:16]} d6 {[%clk 01:31:16]}
{[%emt 00:00:09]} 3. Bb5+ {[%clk 01:28:37]} {[%emt 00:02:39]} Nd7 {[%clk
01:30:57]} {[%emt 00:00:48]} 4. Ba4 {[%clk 01:27:29]} {[%emt 00:01:38]} a6
{[%clk 01:31:05]} {[%emt 00:00:22]} 5. c3 {[%clk 01:27:11]} {[%emt 00:00:48]}
Ngf6 {[%clk 01:30:31]} {[%emt 00:01:05]} 6. d3 {[%clk 01:26:59]} {[%emt
00:00:43]} b5 {[%clk 01:30:26]} {[%emt 00:00:35]} 7. Bc2 {[%clk 01:27:05]}
{[%emt 00:00:23]} Bb7 {[%clk 01:30:41]} {[%emt 00:00:15]} 8. Nbd2 {[%clk
01:21:48]} {[%emt 00:05:48]} e6 {[%clk 01:30:34]} {[%emt 00:00:37]} 9. O-O
{[%clk 01:22:04]} {[%emt 00:00:14]} Be7 {[%clk 01:30:57]} {[%emt 00:00:08]} 10.
Re1 {[%clk 01:21:12]} {[%emt 00:01:21]} Qc7 {[%clk 01:30:51]} {[%emt 00:00:37]}
11. d4 {[%clk 01:20:08]} {[%emt 00:01:32]} O-O {[%clk 01:30:34]} {[%emt
00:00:48]} 12. Nf1 {[%clk 01:17:05]} {[%emt 00:03:31]} cxd4 {[%clk 01:30:04]}
{[%emt 00:01:01]} 13. cxd4 {[%clk 01:17:26]} {[%emt 00:00:09]} Rfc8 {[%clk
01:30:17]} {[%emt 00:00:17]} 14. Bd3 {[%clk 01:15:52]} {[%emt 00:02:04]} e5
{[%clk 01:30:39]} {[%emt 00:00:08]} 15. Ng3 {[%clk 01:15:03]} {[%emt 00:01:18]}
Bf8 {[%clk 01:27:35]} {[%emt 00:03:35]} 16. h3 {[%clk 01:08:02]} {[%emt
00:07:31]} g6 {[%clk 01:26:41]} {[%emt 00:01:25]} 17. Bd2 {[%clk 01:04:30]}
{[%emt 00:04:01]} Qb6 {[%clk 01:24:55]} {[%emt 00:02:17]} 18. Be3 {[%clk
01:03:52]} {[%emt 00:01:08]} Qa5 {[%clk 01:24:44]} {[%emt 00:00:41]} 19. a3
{[%clk 01:02:26]} {[%emt 00:01:56]} Qd8 {[%clk 01:17:49]} {[%emt 00:07:25]} 20.
Qd2 {[%clk 01:01:21]} {[%emt 00:01:34]} Bg7 {[%clk 01:17:31]} {[%emt 00:00:47]}
21. Rad1 {[%clk 00:58:40]} {[%emt 00:03:12]} Qc7 {[%clk 01:17:44]} {[%emt
00:00:17]} 22. Bh6 {[%clk 00:58:19]} {[%emt 00:00:51]} Bh8 {[%clk 01:12:44]}
{[%emt 00:05:30]} 23. Nf5 {[%clk 00:53:33]} {[%emt 00:05:15]} Re8 {[%clk
01:11:34]} {[%emt 00:01:40]} 24. Rc1 {[%clk 00:53:03]} {[%emt 00:01:00]} Qb8
{[%clk 01:11:37]} {[%emt 00:00:27]} 25. d5 {[%clk 00:51:19]} {[%emt 00:02:14]}
Nh5 {[%clk 01:08:40]} {[%emt 00:03:28]} 26. Ng3 {[%clk 00:46:46]} {[%emt
00:05:03]} Nxg3 {[%clk 01:07:23]} {[%emt 00:01:47]} 27. fxg3 {[%clk 00:47:09]}
{[%emt 00:00:06]} Bg7 {[%clk 01:02:32]} {[%emt 00:05:22]} 28. Rf1 {[%clk
00:42:29]} {[%emt 00:05:10]} f6 {[%clk 00:45:55]} {[%emt 00:17:07]} 29. g4
{[%clk 00:40:43]} {[%emt 00:02:16]} Qd8 {[%clk 00:44:19]} {[%emt 00:02:05]} 30.
Rce1 {[%clk 00:35:16]} {[%emt 00:05:57]} g5 {[%clk 00:43:59]} {[%emt 00:00:50]}
31. Bxg7 {[%clk 00:35:23]} {[%emt 00:00:23]} Kxg7 {[%clk 00:44:25]} {[%emt
00:00:05]} 32. Rf2 {[%clk 00:35:09]} {[%emt 00:00:44]} h6 {[%clk 00:44:12]}
{[%emt 00:00:42]} 33. Nh2 {[%clk 00:35:11]} {[%emt 00:00:28]} Nf8 {[%clk
00:39:31]} {[%emt 00:05:12]} 34. Nf1 {[%clk 00:34:12]} {[%emt 00:01:28]} Nh7
{[%clk 00:37:18]} {[%emt 00:02:43]} 35. Ng3 {[%clk 00:34:24]} {[%emt 00:00:18]}
Bc8 {[%clk 00:37:37]} {[%emt 00:00:11]} 36. Ref1 {[%clk 00:33:38]} {[%emt
00:01:17]} Rf8 {[%clk 00:37:58]} {[%emt 00:00:09]} 37. Qe3 {[%clk 00:33:09]}
{[%emt 00:00:59]} Bd7 {[%clk 00:36:02]} {[%emt 00:02:25]} 38. Nh5+ {[%clk
00:32:08]} {[%emt 00:01:30]} Kg6 {[%clk 00:36:22]} {[%emt 00:00:11]} 39. Kh2
{[%clk 00:31:05]} {[%emt 00:01:34]} Rf7 {[%clk 00:34:15]} {[%emt 00:02:36]} 40.
Rc2 {[%clk 00:30:18]} {[%emt 00:01:17]} Rc8 {[%clk 00:34:12]} {[%emt 00:00:34]}
41. Qf2 {[%clk 00:29:56]} {[%emt 00:00:52]} Rf8 {[%clk 00:34:00]} {[%emt
00:00:42]} 42. Rxc8 {[%clk 00:26:26]} {[%emt 00:04:00]} Bxc8 {[%clk 00:34:12]}
{[%emt 00:00:18]} 43. Rc1 {[%clk 00:26:30]} {[%emt 00:00:27]} Re8 {[%clk
00:31:58]} {[%emt 00:02:44]} 44. Qa7 {[%clk 00:26:00]} {[%emt 00:00:59]} Re7
{[%clk 00:32:04]} {[%emt 00:00:24]} 45. Rxc8 {[%clk 00:26:01]} {[%emt
00:00:30]} 1-0

[Event "Chess Festival Groningen 2023 | A"]
[Site "Groningen, Netherlands"]
[Date "2023.12.29"]
[Round "8.19"]
[White "Aashman, Gupta"]
[Black "Jaiveer, Mahendru"]
[Result "0-1"]
[TimeControl "90min/40moves + 30min + 30sec/move"]
[WhiteFideId "45022500"]
[BlackFideId "25611151"]
[WhiteElo "2235"]
[BlackElo "2294"]

1. d4 {[%clk 01:30:09]} {[%emt 00:01:01]} d5 {[%clk 01:30:57]} 2. c4 {[%clk
01:30:33]} e6 {[%clk 01:31:25]} 3. Nc3 {[%clk 01:30:50]} Nf6 {[%clk 01:31:52]}
{[%emt 00:00:11]} 4. cxd5 {[%clk 01:31:10]} {[%emt 00:00:09]} exd5 {[%clk
01:32:18]} 5. Bg5 {[%clk 01:31:31]} {[%emt 00:00:05]} c6 {[%clk 01:32:42]}
{[%emt 00:00:17]} 6. e3 {[%clk 01:31:56]} h6 {[%clk 01:33:02]} {[%emt
00:00:16]} 7. Bh4 {[%clk 01:31:32]} {[%emt 00:00:36]} Be7 {[%clk 01:33:27]}
{[%emt 00:01:02]} 8. Qc2 {[%clk 01:31:15]} O-O {[%clk 01:33:51]} 9. Bd3 {[%clk
01:31:41]} {[%emt 00:00:13]} Nbd7 {[%clk 01:34:17]} 10. Nge2 {[%clk 01:31:12]}
{[%emt 00:00:50]} Re8 {[%clk 01:34:43]} {[%emt 00:00:36]} 11. O-O {[%clk
01:30:55]} {[%emt 00:00:45]} a5 {[%clk 01:34:51]} {[%emt 00:00:09]} 12. Rae1
{[%clk 01:23:15]} {[%emt 00:08:13]} Nh5 {[%clk 01:33:23]} {[%emt 00:01:37]} 13.
Bxe7 {[%clk 01:23:16]} {[%emt 00:01:08]} Qxe7 {[%clk 01:33:46]} 14. Nc1 {[%clk
01:22:39]} {[%emt 00:00:35]} Nhf6 {[%clk 01:19:27]} {[%emt 00:15:25]} 15. f3
{[%clk 01:18:07]} {[%emt 00:04:47]} Nb6 {[%clk 01:03:52]} {[%emt 00:19:26]} 16.
Nb3 {[%clk 01:02:47]} {[%emt 00:12:11]} Be6 {[%clk 00:56:08]} {[%emt 00:08:11]}
17. a3 {[%clk 00:57:23]} {[%emt 00:07:11]} Red8 {[%clk 00:44:31]} {[%emt
00:11:11]} 18. Nc5 {[%clk 00:43:59]} {[%emt 00:13:41]} Nbd7 {[%clk 00:43:30]}
{[%emt 00:01:42]} 19. N3a4 {[%clk 00:39:15]} {[%emt 00:04:54]} b5 {[%clk
00:42:45]} {[%emt 00:01:51]} 20. Nxd7 {[%clk 00:24:01]} {[%emt 00:15:31]} Nxd7
{[%clk 00:43:08]} 21. Nc3 {[%clk 00:24:24]} Nb6 {[%clk 00:34:00]} {[%emt
00:10:33]} 22. a4 {[%clk 00:17:00]} {[%emt 00:07:07]} b4 {[%clk 00:33:42]}
{[%emt 00:00:52]} 23. Nb1 {[%clk 00:13:35]} {[%emt 00:03:34]} Rac8 {[%clk
00:33:27]} {[%emt 00:00:45]} 24. Rc1 {[%clk 00:11:34]} {[%emt 00:03:01]} Bd7
{[%clk 00:30:21]} {[%emt 00:03:12]} 25. Qd2 {[%clk 00:05:41]} {[%emt 00:06:16]}
c5 {[%clk 00:30:06]} {[%emt 00:00:44]} 26. Ba6 {[%clk 00:03:47]} {[%emt
00:02:32]} Rc7 {[%clk 00:29:01]} {[%emt 00:01:30]} 27. Rxc5 {[%clk 00:02:00]}
{[%emt 00:02:32]} Rxc5 {[%clk 00:28:51]} {[%emt 00:00:23]} 28. dxc5 {[%clk
00:02:29]} {[%emt 00:00:34]} Nxa4 {[%clk 00:29:12]} 29. Re1 {[%clk 00:01:08]}
{[%emt 00:01:26]} Nxc5 {[%clk 00:29:33]} {[%emt 00:00:26]} 30. Bf1 {[%clk
00:01:32]} Bf5 {[%clk 00:28:38]} {[%emt 00:01:14]} 31. Qd4 {[%clk 00:01:55]}
{[%emt 00:00:37]} Ne6 {[%clk 00:26:50]} {[%emt 00:01:51]} 32. Qe5 {[%clk
00:02:05]} {[%emt 00:00:22]} Bg6 {[%clk 00:20:48]} {[%emt 00:06:44]} 33. Nd2
{[%clk 00:02:27]} Qa7 {[%emt 00:08:04]} 34. h4 {[%clk 00:01:19]} {[%emt
00:01:11]} Qb6 {[%clk 00:13:09]} {[%emt 00:00:52]} 35. Nb3 {[%clk 00:00:36]}
{[%emt 00:01:12]} f6 {[%clk 00:13:18]} {[%emt 00:00:27]} 36. Qg3 {[%clk
00:00:51]} {[%emt 00:00:10]} Bc2 {[%clk 00:13:43]} {[%emt 00:00:10]} 37. Na1
{[%clk 00:00:36]} {[%emt 00:00:46]} Bf5 {[%clk 00:12:24]} {[%emt 00:01:45]} 38.
Qf2 {[%clk 00:00:45]} {[%emt 00:00:21]} a4 {[%clk 00:12:15]} {[%emt 00:00:37]}
39. Rd1 {[%clk 00:00:39]} {[%emt 00:00:48]} b3 {[%clk 00:10:57]} {[%emt
00:01:42]} 40. Qd2 {[%clk 00:00:36]} {[%emt 00:00:58]} a3 {[%clk 00:09:35]}
{[%emt 00:01:19]} 41. Bd3 {[%clk 00:19:43]} {[%emt 00:11:23]} Bxd3 {[%clk
00:33:53]} {[%emt 00:06:11]} 42. Qxd3 {[%clk 00:20:11]} {[%emt 00:00:33]} axb2
{[%clk 00:33:52]} {[%emt 00:00:14]} 43. Nxb3 {[%clk 00:20:40]} Nf4 {[%clk
00:33:37]} {[%emt 00:00:37]} 44. Qc2 {[%clk 00:17:31]} {[%emt 00:03:34]} Rb8
{[%clk 00:33:11]} {[%emt 00:01:03]} 45. Nd2 {[%clk 00:16:15]} {[%emt 00:01:39]}
Qxe3+ {[%clk 00:33:27]} {[%emt 00:00:41]} 0-1

[Event "Chess Festival Groningen 2023 | A"]
[Site "Groningen, Netherlands"]
[Date "2023.12.29"]
[Round "8.20"]
[White "Keuning, Selwin"]
[Black "Toktomushev, Teimur"]
[Result "0-1"]
[TimeControl "90min/40moves + 30min + 30sec/move"]
[WhiteElo "2139"]
[BlackElo "2249"]

1. e4 {[%clk 01:30:55]} {[%emt 00:00:25]} c5 {[%clk 01:29:54]} {[%emt
00:00:39]} 2. c3 {[%clk 01:31:16]} {[%emt 00:00:38]} d5 {[%clk 01:30:13]} 3.
exd5 {[%clk 01:31:42]} Qxd5 {[%clk 01:30:35]} 4. d4 {[%clk 01:32:06]} Nf6
{[%clk 01:30:57]} {[%emt 00:00:30]} 5. Nf3 {[%clk 01:32:30]} e6 {[%clk
01:31:20]} 6. Na3 {[%clk 01:32:54]} Nc6 {[%clk 01:31:44]} 7. Be3 {[%clk
01:33:17]} {[%emt 00:00:27]} cxd4 {[%clk 01:32:09]} 8. Nb5 {[%clk 01:33:43]}
Qd8 {[%clk 01:32:04]} {[%emt 00:00:45]} 9. Nbxd4 {[%clk 01:34:08]} {[%emt
00:00:09]} Nd5 {[%clk 01:32:20]} 10. Nxc6 {[%clk 01:34:29]} {[%emt 00:00:04]}
bxc6 {[%clk 01:32:45]} 11. Bd2 {[%clk 01:34:55]} {[%emt 00:00:05]} Bb7 {[%clk
01:30:28]} {[%emt 00:02:45]} 12. Qc2 {[%clk 01:32:18]} {[%emt 00:03:32]} Be7
{[%clk 01:25:12]} {[%emt 00:06:00]} 13. c4 {[%clk 01:28:50]} {[%emt 00:03:40]}
Nf6 {[%clk 01:25:05]} {[%emt 00:00:18]} 14. Rd1 {[%clk 01:23:51]} {[%emt
00:05:40]} Qc7 {[%clk 01:18:46]} {[%emt 00:06:38]} 15. c5 {[%clk 01:22:33]}
{[%emt 00:01:45]} a5 {[%clk 00:56:34]} {[%emt 00:22:43]} 16. Bc3 {[%clk
01:14:33]} {[%emt 00:08:30]} a4 {[%clk 00:41:53]} {[%emt 00:15:09]} 17. Be2
{[%clk 00:55:25]} {[%emt 00:19:44]} O-O {[%clk 00:29:44]} {[%emt 00:12:36]} 18.
O-O {[%clk 00:46:55]} {[%emt 00:08:56]} Nd5 {[%clk 00:26:12]} {[%emt 00:04:02]}
19. Be5 {[%clk 00:44:32]} {[%emt 00:03:03]} Qa5 {[%clk 00:23:07]} {[%emt
00:03:34]} 20. Rd4 {[%clk 00:31:59]} {[%emt 00:13:07]} Qxc5 {[%clk 00:15:09]}
{[%emt 00:08:15]} 21. Rc4 {[%clk 00:31:27]} {[%emt 00:01:06]} Qa5 {[%clk
00:14:53]} {[%emt 00:00:42]} 22. Rg4 {[%clk 00:30:27]} {[%emt 00:01:30]} Bf6
{[%clk 00:12:02]} {[%emt 00:03:48]} 23. Qe4 {[%clk 00:21:54]} {[%emt 00:08:39]}
Ba6 {[%clk 00:05:20]} {[%emt 00:07:24]} 24. Bxa6 {[%clk 00:16:00]} {[%emt
00:06:09]} Rxa6 {[%clk 00:04:43]} {[%emt 00:01:08]} 25. Rc1 {[%clk 00:12:29]}
{[%emt 00:04:50]} Qd8 {[%clk 00:02:04]} {[%emt 00:02:50]} 26. Qc4 {[%clk
00:11:14]} {[%emt 00:01:50]} Rb6 {[%clk 00:01:25]} {[%emt 00:00:33]} 27. Qxa4
{[%clk 00:10:49]} {[%emt 00:01:35]} Bxe5 {[%clk 00:00:56]} {[%emt 00:00:19]} 28.
Nxe5 {[%clk 00:11:16]} {[%emt 00:00:39]} Rxb2 {[%clk 00:00:41]} {[%emt
00:00:11]} 29. Qa3 {[%clk 00:03:57]} {[%emt 00:08:05]} Rd2 {[%clk 00:00:34]}
{[%emt 00:00:27]} 30. Qg3 {[%clk 00:01:57]} {[%emt 00:02:42]} g6 {[%clk
00:00:35]} {[%emt 00:00:10]} 31. Nxg6 {[%clk 00:01:34]} {[%emt 00:00:52]} fxg6
{[%clk 00:00:56]} {[%emt 00:00:30]} 32. Rxg6+ {[%clk 00:02:01]} {[%emt
00:00:08]} Kh8 {[%clk 00:00:48]} {[%emt 00:00:17]} 33. Rxe6 {[%clk 00:01:39]}
{[%emt 00:00:50]} Rfxf2 {[%clk 00:00:40]} {[%emt 00:00:35]} 34. Qe5+ {[%clk
00:01:15]} {[%emt 00:00:56]} Nf6 {[%clk 00:01:09]} {[%emt 00:00:05]} 35. Rexc6
{[%clk 00:00:37]} {[%emt 00:01:09]} Rxg2+ {[%clk 00:01:28]} {[%emt 00:00:06]}
36. Kh1 {[%clk 00:01:05]} {[%emt 00:00:10]} Rxh2+ {[%clk 00:01:52]} {[%emt
00:00:09]} 37. Qxh2 {[%clk 00:01:31]} Qd5+ {[%clk 00:01:51]} {[%emt 00:00:54]}
38. Kg1 {[%clk 00:02:01]} Qd4+ {[%clk 00:02:02]} {[%emt 00:00:32]} 39. Kh1
{[%clk 00:02:23]} Qe4+ {[%clk 00:02:27]} 40. Kg1 {[%clk 00:02:51]} Qe3+ {[%clk
00:02:51]} 41. Kh1 {[%clk 00:03:17]} Qf3+ {[%clk 00:03:09]} {[%emt 00:00:20]}
42. Kg1 {[%clk 00:03:44]} Rxh2 {[%clk 00:03:28]} 0-1

[Event "Chess Festival Groningen 2023 | A"]
[Site "Groningen, Netherlands"]
[Date "2023.12.29"]
[Round "8.21"]
[White "Boeren, Jurriaan"]
[Black "Nagarkatte, Vedant"]
[Result "1-0"]
[TimeControl "90min/40moves + 30min + 30sec/move"]
[BlackFideId "25636227"]
[WhiteElo "2102"]
[BlackElo "2320"]

1. e4 {[%clk 01:30:57]} {[%emt 00:00:40]} e5 {[%clk 01:30:57]} 2. Nf3 {[%clk
01:31:23]} Nc6 {[%clk 01:31:24]} 3. Bb5 {[%clk 01:31:48]} a6 {[%clk 01:31:50]}
4. Ba4 {[%clk 01:32:14]} Nf6 {[%clk 01:32:17]} 5. O-O {[%clk 01:32:40]} {[%emt
00:00:04]} Be7 {[%clk 01:32:45]} 6. Re1 {[%clk 01:33:04]} b5 {[%clk 01:33:07]}
{[%emt 00:00:15]} 7. Bb3 {[%clk 01:33:25]} O-O {[%clk 01:33:03]} {[%emt
00:00:48]} 8. a4 {[%clk 01:33:40]} {[%emt 00:00:04]} Bb7 {[%clk 01:33:24]}
{[%emt 00:00:06]} 9. d3 {[%clk 01:34:01]} {[%emt 00:00:14]} d6 {[%clk
01:33:46]} {[%emt 00:00:38]} 10. Nbd2 {[%clk 01:33:20]} {[%emt 00:00:57]} Na5
{[%clk 01:34:03]} {[%emt 00:00:09]} 11. Ba2 {[%clk 01:33:26]} {[%emt 00:00:08]}
c5 {[%clk 01:34:26]} {[%emt 00:00:29]} 12. c3 {[%clk 01:28:22]} {[%emt
00:05:10]} Qc7 {[%clk 01:34:24]} {[%emt 00:00:45]} 13. Nf1 {[%clk 01:25:47]}
{[%emt 00:03:06]} h6 {[%clk 01:33:47]} {[%emt 00:00:53]} 14. Ne3 {[%clk
01:23:28]} {[%emt 00:02:48]} Bc8 {[%clk 01:33:27]} {[%emt 00:00:51]} 15. axb5
{[%clk 01:18:21]} {[%emt 00:05:38]} axb5 {[%clk 01:24:07]} {[%emt 00:09:48]} 16.
b4 {[%clk 01:16:19]} {[%emt 00:02:34]} cxb4 {[%clk 01:23:45]} {[%emt 00:00:57]}
17. cxb4 {[%clk 01:15:50]} {[%emt 00:01:24]} Nc6 {[%clk 01:24:03]} {[%emt
00:00:09]} 18. Bxf7+ {[%clk 01:14:19]} {[%emt 00:01:54]} Rxf7 {[%clk 01:24:03]}
{[%emt 00:00:27]} 19. Rxa8 {[%clk 01:14:42]} Qb7 {[%clk 01:20:17]} {[%emt
00:04:08]} 20. Ra1 {[%clk 01:13:34]} {[%emt 00:01:35]} Nxb4 {[%clk 01:20:42]}
{[%emt 00:00:28]} 21. Qb3 {[%clk 01:11:56]} {[%emt 00:02:06]} Na6 {[%clk
01:20:33]} {[%emt 00:00:35]} 22. Ba3 {[%clk 01:03:14]} {[%emt 00:08:59]} Bf8
{[%clk 01:15:14]} {[%emt 00:05:46]} 23. Reb1 {[%clk 00:59:46]} {[%emt
00:03:57]} Bd7 {[%clk 01:14:48]} {[%emt 00:00:56]} 24. Nxe5 {[%clk 00:58:12]}
{[%emt 00:02:04]} dxe5 {[%clk 01:15:06]} {[%emt 00:00:38]} 25. Bxf8 {[%clk
00:58:39]} Nh5 {[%clk 01:12:08]} {[%emt 00:03:04]} 26. Bd6 {[%clk 00:53:23]}
{[%emt 00:05:46]} Nf4 {[%clk 01:11:50]} {[%emt 00:00:57]} 27. Bxe5 {[%clk
00:44:25]} {[%emt 00:09:58]} Nc5 {[%clk 01:12:15]} 28. Qa2 {[%clk 00:43:13]}
{[%emt 00:01:07]} Nfxd3 {[%clk 01:12:28]} {[%emt 00:00:49]} 29. Qa8+ {[%clk
00:40:49]} {[%emt 00:02:28]} Qxa8 {[%clk 01:12:53]} {[%emt 00:00:05]} 30. Rxa8+
{[%clk 00:41:15]} {[%emt 00:00:09]} Kh7 {[%clk 01:13:18]} 31. Bd4 {[%clk
00:36:22]} {[%emt 00:05:20]} Nxe4 {[%clk 01:13:28]} {[%emt 00:00:17]} 32. f3
{[%clk 00:35:51]} {[%emt 00:01:01]} Ng5 {[%clk 01:12:10]} {[%emt 00:02:15]} 33.
Ra7 {[%clk 00:31:55]} {[%emt 00:04:23]} Nf4 {[%clk 01:03:41]} {[%emt 00:08:36]}
34. Rd1 {[%clk 00:29:22]} {[%emt 00:03:03]} Ne2+ {[%clk 00:59:04]} {[%emt
00:05:06]} 35. Kf2 {[%clk 00:27:15]} {[%emt 00:03:37]} Nxd4 {[%clk 00:59:23]}
36. Rxd4 {[%clk 00:27:43]} Bc6 {[%clk 00:59:43]} 37. Rxf7 {[%clk 00:27:29]}
{[%emt 00:00:29]} Nxf7 {[%clk 01:00:07]} 38. Nf5 {[%clk 00:25:20]} {[%emt
00:02:59]} Ne5 {[%clk 00:59:54]} {[%emt 00:00:09]} 39. Ne7 {[%clk 00:23:53]}
{[%emt 00:01:55]} Be8 {[%clk 01:00:04]} {[%emt 00:00:32]} 40. Rd8 {[%clk
00:20:10]} {[%emt 00:04:24]} Bf7 {[%clk 01:00:05]} {[%emt 00:00:13]} 41. Rb8
{[%clk 00:12:37]} {[%emt 00:07:58]} b4 {[%clk 00:58:03]} {[%emt 00:02:30]} 42.
Ke3 {[%clk 00:08:14]} {[%emt 00:05:30]} b3 {[%clk 00:58:22]} 43. Kd4 {[%clk
00:06:58]} {[%emt 00:02:04]} Nd7 {[%clk 00:56:50]} {[%emt 00:01:18]} 44. Rb7
{[%clk 00:06:47]} {[%emt 00:00:49]} Nf8 {[%clk 00:54:28]} {[%emt 00:02:44]} 45.
Nd5 {[%clk 00:03:23]} {[%emt 00:04:27]} Ne6+ {[%clk 00:42:34]} {[%emt
00:11:51]} 46. Ke5 {[%clk 00:00:47]} {[%emt 00:03:31]} Nd8 {[%clk 00:42:51]} 47.
Rxb3 {[%clk 00:29:03]} {[%emt 00:02:03]} Nc6+ {[%clk 01:13:09]} {[%emt
00:00:44]} 48. Kd6 {[%clk 00:29:08]} Nd4 {[%clk 01:13:34]} 49. Rb2 {[%clk
00:26:49]} {[%emt 00:02:47]} Nf5+ {[%clk 01:12:16]} {[%emt 00:01:51]} 50. Ke5
{[%clk 00:26:35]} {[%emt 00:00:41]} Nh4 {[%clk 01:12:45]} {[%emt 00:00:41]} 51.
Ne7 {[%clk 00:25:50]} {[%emt 00:00:35]} Ng6+ {[%clk 01:12:57]} {[%emt
00:00:28]} 52. Nxg6 {[%clk 00:26:16]} Bxg6 {[%clk 01:13:25]} 53. g4 {[%clk
00:26:31]} {[%emt 00:00:11]} Be8 {[%clk 01:13:50]} {[%emt 00:00:12]} 54. f4
{[%clk 00:26:49]} {[%emt 00:00:10]} Ba4 {[%clk 01:14:13]} {[%emt 00:00:05]} 55.
f5 {[%clk 00:26:45]} {[%emt 00:00:32]} Bd1 {[%clk 01:14:36]} {[%emt 00:00:23]}
56. h3 {[%clk 00:26:59]} {[%emt 00:00:04]} Kg8 {[%clk 01:14:52]} {[%emt
00:00:09]} 57. Rb8+ {[%clk 00:27:08]} {[%emt 00:00:37]} Kf7 {[%clk 01:14:59]}
{[%emt 00:00:17]} 58. Rb7+ {[%clk 00:27:30]} Kg8 {[%clk 01:15:21]} {[%emt
00:00:17]} 59. f6 {[%clk 00:27:52]} {[%emt 00:00:08]} gxf6+ {[%clk 01:15:47]}
60. Kxf6 {[%clk 00:28:15]} {[%emt 00:00:26]} Bc2 {[%clk 01:16:14]} 61. h4
{[%clk 00:28:30]} Be4 {[%clk 01:16:38]} {[%emt 00:00:11]} 62. Ra7 {[%clk
00:28:53]} {[%emt 00:00:14]} Bd3 {[%clk 01:17:02]} 63. g5 {[%clk 00:29:17]}
{[%emt 00:00:12]} hxg5 {[%clk 01:17:17]} 64. hxg5 {[%clk 00:29:43]} Kh8 {[%clk
01:17:04]} {[%emt 00:01:23]} 65. g6 {[%clk 00:30:07]} Bc4 {[%clk 01:17:24]} 66.
Ra8+ {[%clk 00:30:21]} {[%emt 00:00:09]} Bg8 {[%clk 01:17:48]} 67. g7+ {[%clk
00:30:48]} {[%emt 00:00:05]} Kh7 {[%clk 01:18:14]} 68. Rb8 {[%clk 00:31:11]}
{[%emt 00:00:10]} 1-0

[Event "Chess Festival Groningen 2023 | A"]
[Site "Groningen, Netherlands"]
[Date "2023.12.29"]
[Round "8.22"]
[White "Van Helvoort, Rob"]
[Black "Mierins, Emils Janis"]
[Result "1-0"]
[TimeControl "90min/40moves + 30min + 30sec/move"]
[WhiteElo "2098"]
[BlackElo "2258"]

1. e4 {[%clk 01:30:49]} {[%emt 00:00:11]} c5 {[%clk 01:30:56]} {[%emt
00:00:07]} 2. Nf3 {[%clk 01:31:11]} {[%emt 00:00:09]} e6 {[%clk 01:31:20]}
{[%emt 00:00:04]} 3. c3 {[%clk 01:31:19]} {[%emt 00:00:20]} d5 {[%clk
01:28:14]} {[%emt 00:03:40]} 4. exd5 {[%clk 01:31:26]} {[%emt 00:00:19]} exd5
{[%clk 01:28:15]} {[%emt 00:00:38]} 5. Bb5+ {[%clk 01:31:27]} {[%emt 00:00:25]}
Nc6 {[%clk 01:19:43]} {[%emt 00:08:58]} 6. O-O {[%clk 01:27:47]} {[%emt
00:04:09]} Bd6 {[%clk 01:11:44]} {[%emt 00:08:29]} 7. d4 {[%clk 01:22:32]}
{[%emt 00:05:45]} Nge7 {[%clk 01:12:09]} {[%emt 00:00:07]} 8. dxc5 {[%clk
01:20:05]} {[%emt 00:02:56]} Bxc5 {[%clk 01:12:33]} {[%emt 00:00:06]} 9. Bf4
{[%clk 01:15:16]} {[%emt 00:05:22]} O-O {[%clk 01:12:44]} {[%emt 00:00:15]} 10.
Bd3 {[%clk 01:09:49]} {[%emt 00:05:57]} Bf5 {[%clk 01:05:47]} {[%emt 00:07:28]}
11. Bxf5 {[%clk 01:05:19]} {[%emt 00:05:01]} Nxf5 {[%clk 01:02:52]} {[%emt
00:03:22]} 12. Qd3 {[%clk 01:02:11]} {[%emt 00:03:38]} Qd7 {[%clk 01:02:19]}
{[%emt 00:01:06]} 13. Nbd2 {[%clk 00:56:32]} {[%emt 00:06:05]} Rad8 {[%clk
00:56:32]} {[%emt 00:06:17]} 14. Nb3 {[%clk 00:56:43]} {[%emt 00:00:19]} Bb6
{[%clk 00:56:54]} {[%emt 00:00:08]} 15. Rad1 {[%clk 00:56:32]} {[%emt
00:00:41]} Rfe8 {[%clk 00:54:46]} {[%emt 00:02:51]} 16. Rfe1 {[%clk 00:51:58]}
{[%emt 00:04:55]} Rxe1+ {[%clk 00:53:05]} {[%emt 00:02:07]} 17. Rxe1 {[%clk
00:52:14]} {[%emt 00:00:14]} d4 {[%clk 00:47:23]} {[%emt 00:06:15]} 18. Kf1
{[%clk 00:24:46]} {[%emt 00:27:54]} h6 {[%clk 00:34:55]} {[%emt 00:12:57]} 19.
c4 {[%clk 00:21:12]} {[%emt 00:04:13]} Nb4 {[%clk 00:34:30]} {[%emt 00:00:51]}
20. Qd2 {[%clk 00:21:34]} {[%emt 00:00:11]} Qa4 {[%clk 00:27:11]} {[%emt
00:07:41]} 21. c5 {[%clk 00:07:58]} {[%emt 00:14:07]} Ba5 {[%clk 00:23:13]}
{[%emt 00:07:59]} 22. Nxa5 {[%emt 00:01:11]} Qxa5 {[%clk 00:23:18]} 23. g4
{[%clk 00:06:45]} Qb5+ {[%clk 00:20:16]} {[%emt 00:01:27]} 24. Kg2 {[%clk
00:05:56]} {[%emt 00:01:19]} Nd3 {[%clk 00:18:51]} {[%emt 00:01:55]} 25. gxf5
{[%clk 00:06:18]} {[%emt 00:00:56]} Nxe1+ {[%clk 00:19:16]} 26. Nxe1 {[%clk
00:06:36]} Qxc5 {[%clk 00:19:41]} 27. Qd3 {[%clk 00:06:04]} {[%emt 00:00:37]}
Qd5+ {[%clk 00:19:19]} {[%emt 00:00:52]} 28. Nf3 {[%clk 00:05:44]} {[%emt
00:00:50]} Qxa2 {[%clk 00:19:38]} {[%emt 00:00:15]} 29. f6 {[%clk 00:05:17]}
{[%emt 00:00:54]} g6 {[%clk 00:16:01]} {[%emt 00:04:15]} 30. Bxh6 {[%clk
00:05:11]} {[%emt 00:00:27]} Qe6 {[%clk 00:15:00]} {[%emt 00:01:40]} 31. h3
{[%clk 00:04:57]} {[%emt 00:00:36]} Rd5 {[%clk 00:15:01]} {[%emt 00:00:27]} 32.
Qa3 {[%clk 00:04:27]} {[%emt 00:01:01]} Qxf6 {[%clk 00:14:47]} {[%emt
00:00:44]} 33. Qf8+ {[%clk 00:04:32]} {[%emt 00:00:34]} Kh7 {[%clk 00:15:16]}
34. h4 {[%clk 00:04:38]} {[%emt 00:00:15]} Rd8 {[%clk 00:15:36]} {[%emt
00:00:15]} 35. Ng5+ {[%clk 00:04:39]} {[%emt 00:00:24]} Qxg5+ {[%clk 00:15:56]}
{[%emt 00:00:11]} 36. hxg5 {[%clk 00:05:00]} {[%emt 00:00:08]} Rxf8 {[%clk
00:16:13]} {[%emt 00:00:14]} 37. Bxf8 {[%clk 00:05:22]} {[%emt 00:00:07]} Kg8
{[%clk 00:15:57]} {[%emt 00:00:51]} 38. Be7 {[%clk 00:05:33]} {[%emt 00:00:19]}
d3 {[%clk 00:15:39]} {[%emt 00:00:52]} 39. Kf3 {[%clk 00:05:50]} {[%emt
00:00:06]} 1-0